bitfinex/quotes_ETHUSD_20241030
["timestamp","ask_amount","ask_price","bid_price","bid_amount"]
[1730268535894,3.75053,2666.3,2665.8,0.55]
[1730268536100,3.75053,2666.3,2665.8,4.3012]
[1730268536456,3.75053,2666.3,2665.8,4.30121]
[1730268536594,4.57389,2666.4,2666.0,0.55]
[1730268536994,4.57389,2666.4,2666.0,4.3758329]
[1730268536995,0.8235,2666.4,2666.0,4.3758329]
[1730268537299,0.8235,2666.4,2666.2,0.55]
[1730268538197,0.8235,2666.4,2666.0,0.55]
[1730268538393,0.8235,2666.4,2666.0,4.30086]
[1730268539959,0.8235,2666.4,2666.0,4.3758693]
[1730268540101,0.8235,2666.4,2666.0,4.30086]
[1730268540497,0.8235,2666.4,2666.0,0.55]
[1730268540727,0.8235,2666.4,2666.0,0.62500932]
[1730268540901,0.8235,2666.4,2666.2,0.55]
[1730268541514,0.1297735,2666.5,2666.4,3.75037]
[1730268541726,0.1297735,2666.5,2666.4,4.30037]
[1730268548805,0.1297735,2666.5,2666.4,4.37536061]
[1730268549006,0.1297735,2666.5,2666.4,4.30037]
[1730268550744,0.1297735,2666.5,2666.4,6.55337]
[1730268551250,0.1297735,2666.5,2666.4,6.82883301]
[1730268551840,0.1297735,2666.5,2666.4,6.55337]
[1730268552137,0.1297735,2666.5,2666.4,6.82887594]
[1730268552739,0.1297735,2666.5,2666.4,6.55337]
[1730268552940,0.1297735,2666.5,2666.4,6.82890658]
[1730268553540,3.5e-06,2666.5,2666.4,12.21678405]
[1730268553854,3.5e-06,2666.5,2666.4,12.65946452]
[1730268554344,3.5e-06,2666.5,2666.4,12.66045396]
[1730268555103,3.5e-06,2666.5,2666.4,11.11838705]
[1730268555335,3.5e-06,2666.5,2666.4,12.65963915]
[1730268555743,3.5e-06,2666.5,2666.4,13.04557482]
[1730268555970,3.5e-06,2666.5,2666.4,12.65975117]
[1730268556171,3.5e-06,2666.5,2666.4,12.38421459]
[1730268556482,8.345375,2667.8,2667.7,3.74854]
[1730268556767,8.345375,2667.8,2667.7,4.29854]
[1730268556945,8.345375,2667.8,2667.7,7.37834]
[1730268557276,8.245375,2667.8,2667.7,7.37834]
[1730268557969,8.245375,2667.8,2667.7,7.65310242]
[1730268558134,8.245375,2667.8,2667.7,7.37834]
[1730268558967,8.245375,2667.8,2667.7,5.12534]
[1730268559167,8.245375,2667.8,2667.5,8.00523158]
[1730268559168,8.245375,2667.8,2667.5,2.48294153]
[1730268559369,4.57136,2667.7,2667.1,3.74938]
[1730268559613,4.57136,2667.7,2667.1,3.74926]
[1730268560146,4.57136,2667.7,2667.1,7.49856]
[1730268560358,4.57136,2667.7,2667.1,3.74926]
[1730268560562,10.05901592,2667.7,2667.0,3.74951]
[1730268560759,10.05901592,2667.7,2666.9,6.23254153]
[1730268560760,0.8228,2667.6,2666.9,6.23254153]
[1730268560962,3.7489,2667.5,2666.9,6.23254153]
[1730268561348,8.245375,2667.8,2667.3,3.74909]
[1730268561550,8.245375,2667.8,2667.5,3.74879]
[1730268562073,8.245375,2667.8,2667.5,0.55]
[1730268563391,8.245375,2667.8,2667.4,0.55]
[1730268563761,11.993815,2667.8,2667.3,0.55]
[1730268564269,11.993815,2667.8,2667.2,7.49839]
[1730268564270,0.8228,2667.6,2667.0,0.55]
[1730268564469,0.8228,2667.6,2667.2,3.74913]
[1730268564675,0.8228,2667.6,2667.5,0.55]
[1730268564849,8.245375,2667.8,2667.5,0.55]
[1730268565053,9.068175,2667.8,2667.6,3.74867]
[1730268565288,9.068175,2667.8,2667.5,4.29876]
[1730268565596,9.068175,2667.8,2667.7,0.55]
[1730268565883,12.816575,2667.8,2667.7,0.55]
[1730268566271,9.068175,2667.8,2667.7,0.55]
[1730268566478,9.068175,2667.8,2667.5,0.55]
[1730268566652,9.068175,2667.8,2667.4,0.55]
[1730268566850,9.068175,2667.8,2667.5,0.07496941]
[1730268567072,9.068175,2667.8,2667.6,8.04726]
[1730268567284,9.068175,2667.8,2667.6,4.29863]
[1730268567883,9.06722742,2667.8,2667.6,4.29863]
[1730268568307,9.06722742,2667.8,2667.7,0.55]
[1730268568582,9.06722742,2667.8,2667.7,4.29854]
[1730268569594,9.06722742,2667.8,2667.3,2.253]
[1730268569595,9.06722742,2667.8,2667.6,3.74861]
[1730268569884,9.06722742,2667.8,2667.7,0.55]
[1730268570482,9.06722742,2667.8,2667.5,0.55]
[1730268570982,9.06722742,2667.8,2667.6,3.82357587]
[1730268571179,9.06722742,2667.8,2667.7,0.55]
[1730268571966,9.06722742,2667.8,2667.7,4.29854]
[1730268572295,8.24442742,2667.8,2667.7,4.29854]
[1730268573891,8.24442742,2667.8,2667.7,0.55]
[1730268574286,8.24442742,2667.8,2667.7,4.29854]
[1730268574867,8.24442742,2667.8,2667.7,6.55154]
[1730268575102,8.24442742,2667.8,2667.7,6.6264984]
[1730268575398,8.24442742,2667.8,2667.7,7.36524]
[1730268577492,8.24442742,2667.8,2667.7,7.37524]
[1730268579980,4.49602742,2667.8,2667.7,10.37524]
[1730268580181,2.92e-06,2668.0,2667.9,10.38496]
[1730268580381,0.035,2668.2,2668.1,10.38468]
[1730268580704,0.035,2668.2,2668.1,13.79006348]
[1730268580904,1e-05,2668.2,2668.1,13.79006348]
[1730268581281,0.1297735,2669.2,2669.1,6.54958]
[1730268582612,0.1297735,2669.2,2669.1,6.62448798]
[1730268582810,0.1297735,2669.2,2669.1,9.89377803]
[1730268582975,0.1297735,2669.2,2669.1,9.81887005]
[1730268583484,0.1297735,2669.2,2669.1,10.63257005]
[1730268583687,0.1297735,2669.2,2669.1,11.10784486]
[1730268584297,0.1297735,2669.2,2669.1,10.63257005]
[1730268584497,0.1297735,2669.2,2669.1,10.64257005]
[1730268585779,0.1297735,2669.2,2669.1,7.37328]
[1730268586916,0.1297735,2669.2,2669.1,14.62404729]
[1730268587322,13.545967,2670.0,2669.9,4.29545]
[1730268587323,13.2859705,2670.0,2669.9,4.29545]
[1730268587524,13.2859705,2670.0,2669.9,8.38254005]
[1730268587819,13.2859705,2670.0,2669.9,8.34772724]
[1730268588909,13.2859705,2670.0,2669.9,10.84152481]
[1730268589089,13.2859705,2670.0,2669.9,10.85152481]
[1730268589706,13.2859705,2670.0,2669.9,8.12325]
[1730268589910,13.2859705,2670.0,2669.9,8.56198981]
[1730268590395,13.2859705,2670.0,2669.9,8.55198981]
[1730268590907,13.2859705,2670.0,2669.9,8.11325]
[1730268591290,7.01256005,2671.5,2669.9,8.11325]
[1730268591291,0.7586,2671.3,2671.1,3.74376]
[1730268591489,0.7586,2671.3,2671.2,0.55]
[1730268591930,0.7586,2671.3,2671.1,0.55]
[1730268592085,0.7586,2671.7,2671.4,0.55]
[1730268592489,0.1297735,2671.9,2671.6,0.55]
[1730268592716,0.1297735,2671.9,2671.8,0.55]
[1730268592886,0.1297735,2671.9,2671.7,3.74284]
[1730268593108,0.1297735,2671.9,2671.8,0.55]
[1730268593287,0.1297735,2671.9,2671.6,0.55]
[1730268593507,0.1297735,2671.9,2670.4,0.8178]
[1730268593508,4.02789005,2671.7,2670.4,0.8178]
[1730268593704,4.02789005,2671.7,2669.9,1.89822982]
[1730268593705,3.7442,2670.8,2670.1,0.8178]
[1730268594013,4.50263,2671.0,2670.4,3.74473]
[1730268594641,0.7586,2671.0,2670.5,3.81948705]
[1730268594814,0.7586,2671.0,2670.5,0.07487705]
[1730268595146,4.50259,2671.0,2670.3,0.55]
[1730268595342,8.2466,2671.0,2670.3,0.55]
[1730268595524,3.74405,2670.9,2670.3,0.55]
[1730268595835,3.74421,2670.8,2670.2,3.74493]
[1730268596146,4.50315,2670.6,2669.9,3.74544]
[1730268596509,4.50308,2670.6,2669.9,3.74544]
[1730268597109,3.74466,2670.5,2669.8,7.01484005]
[1730268597311,0.7586,2670.6,2669.9,0.0748913]
[1730268597649,0.7586,2670.6,2670.1,3.74507]
[1730268598445,0.7586,2670.6,2670.3,0.55]
[1730268598940,0.7586,2670.6,2670.1,0.55]
[1730268598941,1.208883,2670.6,2670.1,0.55]
[1730268599103,0.7586,2670.6,2670.1,0.55]
[1730268599304,4.50318,2670.6,2670.3,0.55]
[1730268599503,0.7586,2670.6,2670.3,0.55]
[1730268599749,4.50315,2670.6,2670.3,0.55]
[1730268599937,4.50315,2670.6,2670.1,0.55]
[1730268600106,5.327906,2670.6,2670.3,0.55]
[1730268600538,0.7586,2670.6,2670.3,0.55]
[1730268600751,0.7586,2670.6,2670.3,6.54787]
[1730268600920,0.7586,2670.6,2670.3,2.803]
[1730268601120,0.7586,2670.6,2670.3,6.54787]
[1730268601340,0.7586,2670.6,2670.3,6.54786]
[1730268601633,0.01,2671.2,2670.6,0.55]
[1730268601634,0.7868,2671.2,2670.6,0.55]
[1730268601806,0.7868,2671.2,2670.8,0.55]
[1730268601807,0.454034,2671.1,2670.8,0.55]
[1730268602004,0.7868,2671.2,2671.1,3.74377]
[1730268602217,0.7868,2671.2,2671.0,0.55]
[1730268602218,0.7868,2671.8,2671.4,3.74325]
[1730268602422,0.7868,2671.8,2671.5,0.55]
[1730268602947,4.52965,2671.8,2671.2,0.55]
[1730268603237,4.52965,2671.8,2671.2,4.29361]
[1730268603436,0.46594235,2671.7,2671.2,4.29361]
[1730268603637,0.46594235,2671.7,2671.5,0.55]
[1730268603943,0.7868,2671.8,2671.5,0.55]
[1730268604351,0.1297735,2671.9,2671.8,2.803]
[1730268604506,0.1297735,2671.9,2671.8,0.62484378]
[1730268605119,0.1297735,2671.9,2671.8,0.55]
[1730268605443,0.1297735,2671.9,2671.7,2.803]
[1730268605648,0.1297735,2671.9,2671.7,6.54585]
[1730268605954,0.1297735,2671.9,2671.6,0.55]
[1730268606156,0.1297735,2671.9,2670.9,3.74401]
[1730268606157,3.74318,2671.6,2670.9,3.74401]
[1730268606359,0.51699585,2671.9,2671.0,0.84236165]
[1730268606532,0.1297735,2671.9,2671.4,3.74335]
[1730268606732,3.74308,2671.6,2670.9,3.744]
[1730268606949,0.7868,2671.3,2670.8,2.253]
[1730268607121,0.7868,2671.3,2670.1,4.52535092]
[1730268607122,3.74373,2671.2,2670.3,4.21188315]
[1730268607469,4.53035,2671.3,2670.5,3.74453]
[1730268607620,4.53035,2671.3,2670.7,3.74424]
[1730268607621,5.68464001,2671.3,2670.7,3.74424]
[1730268607826,3.74363,2671.2,2670.8,0.07487547]
[1730268608133,5.68464001,2671.3,2670.7,3.74433]
[1730268608333,5.68464001,2671.3,2670.8,2.32787551]
[1730268608334,1.94109001,2671.3,2670.8,2.32787551]
[1730268608535,0.7868,2671.3,2671.2,0.55]
[1730268609071,0.7868,2671.6,2671.2,2.803]
[1730268609236,0.7868,2671.6,2671.4,0.55]
[1730268609569,0.7868,2671.6,2671.3,2.803]
[1730268610443,0.7868,2671.6,2671.5,2.803]
[1730268610631,0.9165735,2671.9,2671.5,6.54621]
[1730268610964,3.74288,2671.8,2671.5,0.55]
[1730268611133,3.74288,2671.8,2671.4,2.803]
[1730268611468,1.38247785,2671.9,2671.4,6.54627]
[1730268611760,0.9165735,2671.9,2671.6,2.803]
[1730268612227,0.9165735,2671.9,2671.6,6.54604]
[1730268612853,0.9165735,2671.9,2671.6,2.803]
[1730268614065,0.9165735,2671.9,2671.6,0.55]
[1730268614273,4.6592635,2671.9,2671.4,0.55]
[1730268614427,4.6592635,2671.9,2671.4,2.803]
[1730268615358,5.49943385,2671.9,2671.3,0.55]
[1730268615557,3.74284,2671.8,2671.3,0.55]
[1730268615758,3.74295,2671.7,2671.3,0.55]
[1730268616760,3.74295,2671.7,2671.2,2.253]
[1730268616761,0.9165735,2671.9,2671.2,0.55]
[1730268616943,7.48664,2671.5,2671.1,2.253]
[1730268617136,0.7515,2671.5,2671.1,2.253]
[1730268617335,0.7515,2671.5,2671.2,0.07486129]
[1730268617539,3.74305,2671.7,2671.2,0.07486129]
[1730268617772,0.7515,2671.8,2671.2,5.99662]
[1730268618063,3.74301,2671.7,2671.2,2.253]
[1730268618264,3.74301,2671.7,2671.3,0.55]
[1730268618466,3.74307,2671.6,2671.3,0.55]
[1730268618629,3.74301,2671.7,2671.3,0.55]
[1730268618827,3.7433,2671.5,2671.2,0.55]
[1730268619131,3.74377,2671.1,2670.7,2.253]
[1730268619371,7.48831,2670.9,2670.3,4.51728]
[1730268619535,7.48831,2670.9,2670.0,1.15533139]
[1730268619536,3.74456,2670.6,2670.0,5.28785092]
[1730268619734,3.74456,2670.6,2670.0,4.51763]
[1730268619953,0.7515,2670.9,2670.0,0.7724]
[1730268620266,3.74464,2670.5,2670.1,0.07489097]
[1730268620468,3.74464,2670.5,2670.0,2.253]
[1730268621035,3.74476,2670.4,2670.0,2.253]
[1730268621569,7.48934,2670.5,2670.0,2.253]
[1730268621768,3.74484,2670.4,2670.0,2.253]
[1730268621932,4.49558,2670.9,2670.0,2.253]
[1730268621933,7.48884,2670.7,2670.0,2.253]
[1730268622272,7.48884,2670.7,2670.1,0.55]
[1730268622273,3.74464,2670.5,2670.1,0.55]
[1730268622742,3.74464,2670.5,2670.0,6.54829]
[1730268623134,3.74464,2670.5,2670.0,4.29529]
[1730268623639,3.74438,2670.7,2670.2,0.55]
[1730268623839,0.7515,2670.9,2670.2,0.55]
[1730268623840,8.23979,2670.9,2670.4,4.29475]
[1730268624076,4.49564,2670.9,2670.4,0.55]
[1730268624369,4.49563,2670.9,2670.4,0.55]
[1730268624696,8.23977,2670.9,2670.4,0.55]
[1730268624972,3.74421,2670.8,2670.4,0.55]
[1730268625172,0.7515,2670.9,2670.5,0.55]
[1730268625339,3.80665,2672.7,2670.5,0.55]
[1730268625340,0.7515,2671.2,2670.5,0.55]
[1730268625544,3.75313,2671.6,2670.7,4.29426]
[1730268625545,3.74342,2671.4,2670.7,4.29426]
[1730268625779,0.7515,2671.5,2671.0,0.55]
[1730268626074,0.7515,2671.5,2671.2,0.55]
[1730268626276,4.49438,2671.8,2671.2,3.74356]
[1730268626479,0.1297735,2671.9,2671.5,0.55]
[1730268626772,0.1297735,2671.9,2671.5,4.2932]
[1730268627277,0.1297735,2671.9,2671.7,0.55]
[1730268627452,0.1297735,2671.9,2671.8,4.29279]
[1730268627984,0.1297735,2671.9,2671.8,6.54579]
[1730268628144,0.1297735,2671.9,2671.8,7.31819]
[1730268628340,3.5e-06,2671.9,2671.8,7.6011033]
[1730268628543,0.005,2672.8,2672.7,0.55]
[1730268629382,0.005,2672.8,2672.7,5.06393]
[1730268629548,0.005,2672.8,2672.7,1.3224]
[1730268630642,0.005,2672.8,2672.7,0.55]
[1730268632209,3.74207,2672.4,2671.9,2.46596439]
[1730268632364,3.74218,2672.3,2671.9,2.46596439]
[1730268632563,3.74223,2672.2,2671.9,2.46596439]
[1730268632911,3.74251,2672.0,2671.9,2.46596439]
[1730268633406,3.74251,2672.0,2670.8,1.90889006]
[1730268633407,3.74429,2670.8,2670.5,0.7636681]
[1730268633609,3.74434,2670.7,2670.3,3.04197663]
[1730268633778,3.7443,2670.8,2670.3,2.27830853]
[1730268634104,3.744,2671.0,2670.3,2.27830853]
[1730268634302,3.74385,2671.1,2670.4,0.07488177]
[1730268634474,3.74385,2671.1,2670.4,3.74475]
[1730268634678,3.74385,2671.1,2670.5,0.07487616]
[1730268634902,3.74392,2671.0,2670.3,2.74538168]
[1730268635101,3.74392,2671.0,2670.3,6.49026168]
[1730268635263,3.74392,2671.0,2670.3,6.02318853]
[1730268635605,3.74385,2671.1,2670.4,0.55]
[1730268635965,3.74385,2671.1,2670.3,6.02318853]
[1730268635966,3.74377,2671.1,2670.3,2.27830853]
[1730268636192,3.74377,2671.1,2670.3,6.02317853]
[1730268636379,0.7875,2671.2,2670.3,6.02317853]
[1730268636380,3.74394,2671.0,2670.3,6.02317853]
[1730268636581,3.74394,2671.0,2670.3,6.02309853]
[1730268637398,3.74394,2671.0,2670.4,0.55]
[1730268637602,3.74415,2670.9,2670.4,0.55]
[1730268638603,7.48796,2671.0,2670.4,0.55]
[1730268638997,3.74394,2671.0,2670.4,0.55]
[1730268639515,7.48797,2671.0,2670.4,0.55]
[1730268640006,3.74394,2671.0,2670.4,4.29472]
[1730268640205,3.74394,2671.0,2670.4,0.55]
[1730268640498,3.74414,2670.9,2670.4,0.55]
[1730268641009,3.74377,2671.1,2670.5,3.7446]
[1730268641209,3.74377,2671.1,2670.6,0.55]
[1730268641804,4.53114,2671.2,2670.6,4.29447]
[1730268642399,3.74364,2671.2,2670.6,8.03884]
[1730268642608,3.74364,2671.2,2670.6,4.29437]
[1730268643399,3.74364,2671.2,2670.6,8.03876]
[1730268643599,0.7875,2671.5,2670.9,3.74403]
[1730268643844,3.74315,2671.6,2671.0,0.62486692]
[1730268644213,3.74315,2671.6,2671.0,4.36866692]
[1730268644400,3.74285,2671.8,2671.3,0.55]
[1730268646042,7.48575,2671.8,2671.3,0.55]
[1730268646553,3.74295,2671.7,2671.2,0.55]
[1730268646746,0.7875,2671.9,2671.3,0.07485931]
[1730268646949,0.7875,2671.9,2671.4,0.55]
[1730268646950,3.74267,2671.9,2671.4,0.55]
[1730268647245,3.74273,2671.9,2671.3,4.29337]
[1730268647407,3.7428,2671.8,2671.3,0.55]
[1730268647799,0.7875,2672.2,2671.5,0.55]
[1730268648004,3.74259,2672.0,2671.5,0.55]
[1730268648203,3.74266,2671.9,2671.5,0.55]
[1730268648607,3.74242,2672.1,2671.5,1.3275]
[1730268648803,3.74268,2671.9,2671.5,1.3275]
[1730268649243,0.7934,2671.7,2671.0,0.7775]
[1730268649443,4.53636,2671.7,2671.1,2.253]
[1730268649744,3.74292,2671.8,2671.2,5.99651]
[1730268650044,3.74274,2671.9,2671.3,3.74348]
[1730268650248,3.74274,2671.9,2671.2,5.99651]
[1730268650249,3.74288,2671.8,2671.2,5.99651]
[1730268650843,3.74288,2671.8,2671.3,0.55]
[1730268651200,3.74274,2671.9,2671.3,0.55]
[1730268651201,3.74293,2671.7,2671.3,0.55]
[1730268653141,3.74274,2671.9,2671.3,4.29346]
[1730268653343,3.74281,2671.8,2671.3,0.55]
[1730268653532,7.48547,2671.9,2671.3,4.29341]
[1730268654046,0.7934,2672.0,2671.5,4.29308]
[1730268654231,4.53556,2672.3,2671.8,0.55]
[1730268654550,0.7934,2672.6,2672.1,4.29225]
[1730268654968,0.005,2672.8,2672.4,3.74192]
[1730268655133,0.005,2672.8,2672.5,0.55]
[1730268656236,3.74642,2672.8,2672.3,0.55]
[1730268656624,3.74642,2672.8,2672.3,4.29208]
[1730268657224,7.4879,2672.8,2672.3,4.29208]
[1730268657447,3.74178,2672.6,2672.1,0.55]
[1730268657654,0.7934,2672.3,2671.3,1.1532]
[1730268657981,3.74294,2671.7,2671.1,3.7437]
[1730268658385,3.74294,2671.7,2671.2,2.253]
[1730268658386,3.74311,2671.6,2671.2,2.253]
[1730268658554,7.48597,2671.7,2671.2,2.253]
[1730268658753,3.74294,2671.7,2671.2,2.253]
[1730268658985,3.74294,2671.7,2671.2,5.99659]
[1730268659282,3.74294,2671.7,2671.2,2.253]
[1730268659484,3.7429,2671.8,2671.4,2.253]
[1730268659793,3.7428,2671.8,2671.5,0.55]
[1730268660105,0.7934,2672.7,2672.1,2.803]
[1730268660454,0.005,2672.8,2672.5,0.55]
[1730268660665,3.74182,2672.5,2671.9,2.253]
[1730268660951,3.74182,2672.5,2672.0,0.55]
[1730268660952,3.74198,2672.4,2672.0,0.55]
[1730268661180,3.7421,2672.3,2672.0,0.55]
[1730268661760,3.74223,2672.2,2672.0,0.55]
[1730268661989,7.48432,2672.3,2671.8,0.55]
[1730268662296,3.74235,2672.2,2671.8,0.55]
[1730268662452,4.51473,2672.4,2671.8,0.55]
[1730268662453,4.51473,2672.4,2671.8,2.803]
[1730268662653,3.74174,2672.6,2672.1,2.803]
[1730268662881,0.7777,2672.8,2672.4,3.74184]
[1730268663186,0.005,2672.8,2672.5,0.55]
[1730268663563,3.74647,2672.8,2672.3,0.55]
[1730268663961,3.74647,2672.8,2672.1,0.55]
[1730268663962,3.74182,2672.5,2672.1,0.55]
[1730268664158,3.74182,2672.5,2671.5,1.184]
[1730268664159,3.74252,2672.0,2671.5,1.184]
[1730268664363,3.74255,2672.0,2671.3,3.74346]
[1730268664667,3.74255,2672.0,2671.4,3.74327]
[1730268664878,3.74233,2672.2,2671.7,3.74285]
[1730268665201,3.74233,2672.2,2671.2,0.8083]
[1730268665202,4.60480763,2672.2,2671.2,0.8083]
[1730268665384,4.60480763,2672.2,2671.4,3.74333]
[1730268665385,3.74262,2672.0,2671.4,3.74333]
[1730268665587,7.48521,2672.0,2671.4,3.74333]
[1730268665798,3.74265,2671.9,2671.4,3.74333]
[1730268666171,3.74265,2671.9,2671.0,2.253]
[1730268666172,0.005,2672.8,2671.8,2.253]
[1730268666490,3.7416,2672.7,2672.1,0.55]
[1730268666710,0.005,2672.8,2672.3,0.55]
[1730268667160,0.005,2672.8,2672.1,0.55]
[1730268667363,3.74648,2672.8,2672.3,0.55]
[1730268667679,3.74153,2672.7,2672.3,0.55]
[1730268667987,0.005,2672.8,2672.2,0.55]
[1730268668500,0.005,2672.8,2672.6,0.55]
[1730268669272,0.005,2672.8,2672.5,3.7418]
[1730268669469,0.005,2672.8,2672.6,0.55]
[1730268669919,0.005,2672.8,2672.7,4.29153]
[1730268671981,0.005,2672.8,2672.7,0.55]
[1730268672508,0.005,2672.8,2672.7,4.29153]
[1730268674026,0.005,2672.8,2672.7,4.36635276]
[1730268674228,0.005,2672.8,2672.7,4.29153]
[1730268678220,0.005,2672.8,2672.7,5.17464659]
[1730268678639,0.005,2672.8,2672.7,7.42764659]
[1730268679192,0.005,2672.8,2672.7,8.03564639]
[1730268679555,0.005,2672.8,2672.7,7.35283]
[1730268681243,0.005,2672.8,2672.4,3.74187]
[1730268681398,0.7727,2672.7,2672.0,3.74251]
[1730268681703,7.935455,2672.6,2671.9,1.2118]
[1730268681908,3.74175,2672.6,2671.9,1.2866437]
[1730268682098,0.7727,2672.7,2671.9,1.2866437]
[1730268682099,4.51437,2672.7,2671.9,1.2866437]
[1730268682297,3.74169,2672.6,2672.1,3.74229]
[1730268682608,3.74169,2672.6,2672.2,0.07483702]
[1730268682804,4.51431,2672.7,2672.2,0.07483702]
[1730268683039,8.25593,2672.7,2672.1,3.74229]
[1730268683398,4.51431,2672.7,2672.3,0.55]
[1730268683598,8.25592,2672.7,2672.3,0.55]
[1730268683936,0.7727,2672.7,2672.3,6.54499]
[1730268684109,3.74644,2672.8,2672.3,6.54499]
[1730268684937,3.74644,2672.8,2671.9,1.2118]
[1730268684938,3.7418,2672.6,2672.0,2.253]
[1730268685228,3.74162,2672.7,2672.2,3.74222]
[1730268685433,3.74162,2672.7,2672.2,3.81705708]
[1730268685641,3.74162,2672.7,2672.2,0.07483708]
[1730268685997,3.74162,2672.7,2672.2,3.81703708]
[1730268686197,0.005,2672.8,2672.3,6.54506]
[1730268686908,0.005,2672.8,2672.3,10.28712]
[1730268687105,0.005,2672.8,2672.7,0.55]
[1730268687608,0.005,2672.8,2672.6,4.29164]
[1730268687831,0.005,2672.8,2672.6,4.36641522]
[1730268688333,0.005,2672.8,2672.6,4.29159]
[1730268688832,0.005,2672.8,2672.7,6.54453]
[1730268689899,0.005,2672.8,2672.7,0.55]
[1730268690204,0.005,2672.8,2672.4,4.5502]
[1730268690205,0.005,2672.8,2672.5,0.55]
[1730268690629,3.74163,2672.7,2672.1,4.55062]
[1730268690840,3.74163,2672.7,2671.9,1.2118]
[1730268690841,4.51301,2672.0,2671.9,1.2118]
[1730268696144,0.7705,2672.0,2671.9,1.2118]
[1730268696357,4.51267,2672.3,2672.0,0.55]
[1730268696512,0.7705,2672.3,2672.0,0.55]
[1730268697443,4.5126,2672.3,2672.0,0.55]
[1730268697655,4.5126,2672.3,2671.9,1.2118]
[1730268697656,3.74237,2672.1,2671.9,1.2118]
[1730268697819,4.52297436,2672.0,2671.9,1.2118]
[1730268702962,4.51301,2672.0,2671.9,1.2118]
[1730268703722,0.7705,2672.0,2671.9,1.7618]
[1730268704164,4.39069389,2672.3,2671.9,1.7618]
[1730268704323,4.18231582,2672.2,2671.9,1.7618]
[1730268704530,3.74246,2672.1,2671.9,1.7618]
[1730268704882,0.01,2673.0,2672.8,1.302]
[1730268705165,4.56e-06,2673.3,2673.2,6.00383]
[1730268705466,4.56e-06,2673.3,2673.2,15.53715683]
[1730268705651,4.56e-06,2673.3,2673.2,15.81035926]
[1730268705858,4.56e-06,2673.3,2673.2,16.37762377]
[1730268706168,0.005,2674.7,2674.4,4.28915]
[1730268706379,0.005,2674.7,2674.4,7.89051451]
[1730268706583,0.7654,2676.4,2675.7,0.55]
[1730268706733,3.73745,2675.7,2675.2,0.55]
[1730268706937,3.73709,2675.9,2675.2,0.55]
[1730268707168,3.73709,2675.9,2675.2,4.28798]
[1730268707377,3.73678,2676.1,2675.2,0.55]
[1730268707572,3.73721,2675.8,2675.2,0.55]
[1730268707770,0.642439,2675.7,2675.2,0.55]
[1730268708545,0.642439,2675.7,2674.4,0.77378097]
[1730268708546,4.379799,2675.7,2675.0,0.55]
[1730268708763,4.379799,2675.7,2674.7,4.51979]
[1730268708764,0.642439,2675.7,2674.8,0.55]
[1730268708975,3.73735,2675.7,2674.8,0.55]
[1730268709174,3.73735,2675.7,2675.0,0.55]
[1730268709474,3.73735,2675.7,2674.9,0.07476212]
[1730268709475,3.73748,2675.6,2674.8,0.55]
[1730268709653,3.73765,2675.5,2674.8,0.55]
[1730268710180,3.73687,2676.1,2675.0,3.73827]
[1730268710379,3.73715,2675.9,2674.8,4.28851]
[1730268710676,0.374687,2676.0,2675.1,0.55]
[1730268710881,0.450173,2676.3,2675.1,0.55]
[1730268710882,0.450173,2676.3,2675.3,0.55]
[1730268711044,3.73676,2676.2,2675.5,0.55]
[1730268711847,3.73692,2676.0,2675.5,0.55]
[1730268712042,3.18692,2676.0,2675.5,0.55]
[1730268712381,3.7373,2675.8,2675.5,0.55]
[1730268713382,0.318692,2675.9,2675.5,0.55]
[1730268713812,3.73669,2676.2,2675.5,0.55]
[1730268714104,3.73669,2676.2,2675.3,0.55]
[1730268714290,3.73678,2676.1,2675.3,0.55]
[1730268714609,0.7754,2676.4,2675.1,0.55]
[1730268714610,3.73721,2675.8,2675.1,0.55]
[1730268714903,0.373721,2675.7,2675.2,0.07474978]
[1730268715068,0.373721,2675.7,2675.3,0.55]
[1730268715468,4.111071,2675.7,2675.3,0.55]
[1730268715665,4.111071,2675.7,2675.1,0.55]
[1730268716195,4.111071,2675.7,2675.3,0.55]
[1730268716504,0.373721,2675.7,2675.3,0.55]
[1730268716660,3.73708,2675.9,2675.3,0.55]
[1730268716868,3.73697,2676.0,2675.3,0.55]
[1730268717088,3.73706,2675.9,2675.1,4.28807]
[1730268717529,3.73697,2676.0,2675.1,4.28807]
[1730268717679,3.73722,2675.8,2675.1,0.55]
[1730268717999,3.73734,2675.7,2675.1,0.55]
[1730268718203,3.73748,2675.6,2675.3,0.55]
[1730268718405,3.73748,2675.6,2675.1,0.55]
[1730268718718,0.7754,2676.4,2675.1,0.55]
[1730268718719,3.73538,2677.1,2676.1,3.73676]
[1730268718922,3.73538,2677.1,2676.1,0.55]
[1730268718923,0.01,2677.1,2676.1,0.55]
[1730268719212,3.73596,2676.7,2676.1,0.55]
[1730268719596,3.7358,2676.8,2676.1,4.28667]
[1730268719914,3.73595,2676.7,2676.1,0.55]
[1730268720609,3.73572,2676.9,2676.1,4.28669]
[1730268720797,3.73542,2677.1,2676.3,0.55]
[1730268721008,3.73542,2677.1,2676.3,4.28641]
[1730268721319,0.1297735,2677.2,2676.9,3.73564]
[1730268721519,0.1297735,2677.2,2677.1,0.55]
[1730268722075,0.1297735,2677.2,2677.1,1.3426]
[1730268722572,3.8650135,2677.2,2677.1,1.3426]